Cogmind - Beta 10.2 @@@ ROGUE MODE // 2022.01.16 @ 02:16:17 Player: KeepAwake2 Result: Destroyed by H-66 Slayer with Gauss Rifle Performance ------------- Evolutions (4) 2000 Regions Visited (12) 2400 Robots Destroyed (114) 570 Value Destroyed (4090) 4090 Prototype IDs (40) 800 Alien Tech Used (0) 0 Bonus (3058) 3058 TOTAL SCORE: 12918 Bonus ------- High Alert Combat Kills 501 Follower Combat Kills 2032 Network Hubs Disabled 400 Aligned with FarCom 300 Built Enhanced Grunts 300 A7 Reached Mainframe 300 Met R17 at Cetus 500 Friendly Fire -1275 Cogmind --------- Core Integrity 0/850 Matter 300/300 Energy 100/100 System Corruption 38% Temperature Cool (0) Movement Core (50) Location -6/Hub_04(d) Parts ------- > --- POWER (2) -------- (None) > --- PROPULSION (5) --- (None) > --- UTILITY (6) ------ Enhanced Optical Array Experimental Thermal Shield > --- WEAPON (2) ------- (None) > --- INVENTORY (4) ---- Quantum Reactor Advanced Energy Well (398) Remote Shield Scatter Rocket Array Peak State ------------ > --- POWER ------------ Light Particle Reactor Quantum Reactor > --- PROPULSION ------- Centrium Heavy Treads Centrium Heavy Treads Field Propulsion Drive > --- UTILITY ---------- High-capacity Storage Unit Advanced Energy Well Enhanced Optical Array Improved Terrain Scan Processor Medium Regenerative Plating Improved Hacking Suite > --- WEAPON ----------- Advanced Variable Charge Gun Improved KE Penetrator > --- INVENTORY -------- Quantum Reactor Flying Fortress v7 Advanced Heat Sink Triangulator Centrium Medium Armor Plating Force Field Remote Shield Precision Shock Rifle Scatter Rocket Array [Rating: 111] Favorites ----------- Power Light Fission Core Engine Improved Deuterium Engine Power Core Light Fission Core Reactor Quantum Reactor Propulsion Flying Fortress v7 Treads Centrium Heavy Treads Leg Aluminum Leg Flight Unit Flying Fortress v7 Utility High-capacity Storage Unit Device Remote Shield Storage High-capacity Storage Unit Processor Enhanced Optical Array Hackware Improved Hacking Suite Protection Improved Heavy Armor Plating Weapon Precision Shock Rifle Energy Gun Precision Shock Rifle Energy Cannon Ion Burst Cannon Ballistic Gun Improved KE Penetrator Ballistic Cannon Assault Cannon Launcher Mini Grenade Launcher Special Weapon Mining Laser Piercing Weapon Heavy Pick Special Melee Weapon Improved Datajack Build | -11 -10 -9 -9 -9 -8 -8 -7 -6 -6 -6 -6 -6 ------- Run | Scr Mat Mat Min Exi Min Mat Fac Fac Ext Cet Arc Hub Slots Evolved 8 | . . 2 . . . 2 2 2 . . . . Power 1 | . . . . . . . . 1 . . . . Propulsion 3 | . . 2 . . . . 1 . . . . . Utility 4 | . . . . . . 2 1 1 . . . . Weapon . | . . . . . . . . . . . . . Parts Attached 178 | 6 5 8 7 3 . 20 11 49 15 20 5 29 Power 20 | 1 1 1 1 . . 3 1 5 3 2 . 2 Engine 11 | 1 1 1 1 . . 2 . 4 1 . . . Core 5 | . . . . . . 1 1 1 2 . . . Reactor 4 | . . . . . . . . . . 2 . 2 Propulsion 34 | 2 1 2 5 1 . 1 1 9 1 3 2 6 Treads 8 | . . . . . . . . . . 2 1 5 Leg 11 | 2 1 2 5 . . . . . . . 1 . Wheel . | . . . . . . . . . . . . . Hover . | . . . . . . . . . . . . . Flight 15 | . . . . 1 . 1 1 9 1 1 . 1 Utility 66 | 1 1 3 1 2 . 4 4 12 9 12 3 14 Device 36 | . 1 2 . . . 1 2 4 7 8 3 8 Storage 9 | 1 . 1 . 2 . . . . 1 2 . 2 Processor 4 | . . . 1 . . . 1 2 . . . . Hackware 5 | . . . . . . 2 . 1 1 . . 1 Protection 12 | . . . . . . 1 1 5 . 2 . 3 Artifact . | . . . . . . . . . . . . . Weapon 58 | 2 2 2 . . . 12 5 23 2 3 . 7 Energy Gun 21 | 1 2 . . . . 3 4 8 1 2 . . Energy Cannon 7 | . . . . . . 3 . 2 . . . 2 Ballistic Gun 11 | 1 . 1 . . . . . 4 . 1 . 4 Ballistic Cannon 3 | . . . . . . 2 . . 1 . . . Launcher 10 | . . 1 . . . 3 . 5 . . . 1 Special Weapon 2 | . . . . . . 1 . 1 . . . . Impact Weapon . | . . . . . . . . . . . . . Slashing Weapon . | . . . . . . . . . . . . . Piercing Weapon 3 | . . . . . . . . 3 . . . . Special Melee Weapon 1 | . . . . . . . 1 . . . . . Unidentified Prototypes 15 | . . . . . . . 1 2 . 6 2 4 Parts Lost 24 | . 1 2 . . . 2 . 5 1 . . 13 Power 4 | . . . . . . . . 1 1 . . 2 Propulsion 6 | . 1 1 . . . . . 1 . . . 3 Utility 8 | . . . . . . 1 . 1 . . . 6 Weapon 6 | . . 1 . . . 1 . 2 . . . 2 Highest Loss Streak 11 | . 1 1 . . . 2 . 2 1 . . 11 Average Slot Usage (%) 79 | . 88 81 99 79 66 69 75 74 78 82 85 83 Engine 4 | . 14 11 11 11 11 6 3 5 2 . . . Core 3 | . . . . . . 2 4 6 9 5 . . Reactor 3 | . . . . . . . . . . 5 13 12 Treads 4 | . . . . . . . . . . 5 15 18 Leg 4 | . 23 27 43 17 . . . . . . . . Flight 7 | . . . . 6 11 9 14 12 13 10 3 . Device 8 | . 7 11 5 . . 5 11 7 9 10 5 9 Storage 8 | . 14 11 11 11 11 9 7 6 9 7 13 7 Processor 9 | . . . 5 11 11 9 10 9 13 13 13 9 Hackware 5 | . . . . . . 5 2 2 5 6 6 11 Protection 1 | . . . . . . 3 4 5 . . . . Energy Gun 6 | . 22 15 . . . 3 11 7 10 6 6 2 Energy Cannon 1 | . . . . . . 5 . . . . . 3 Ballistic Gun 3 | . 5 1 11 11 11 . . 3 . 5 6 5 Launcher 1 | . . 4 11 11 11 2 2 . . . . . Naked Turns . | . . . . . . . . . . . . . Heaviest Build 93 | 10 15 19 18 41 41 55 57 78 78 88 85 93 Greatest Support 190 | 20 20 30 43 72 72 72 76 80 80 160 183 190 Greatest Overweight (x) 5 | 2 1 . . 5 . . . 1 . . . . Average Overweight (x) . | . . . . . . . . . . . . . Largest Inventory Capacity 12 | 6 6 8 8 12 12 12 12 12 12 12 12 12 Average Capacity 11 | 5 6 7 8 9 12 12 12 12 12 12 12 11 Most Carried 12 | 2 6 8 8 8 9 12 12 12 12 12 12 12 Average Carried 10 | 1 4 7 7 7 8 11 11 11 11 11 12 11 Final Capacity 12 | 6 6 8 8 12 12 12 12 12 12 12 12 4 Final Carried 12 | 2 6 8 8 8 9 12 12 11 12 12 12 4 Class Distribution -------------------- 47% | Mutant 25% | Scavenger-Mutant 8% | Scout 7% | Scavenger-Skirmisher 5% | Commander-Mutant 4% | Commander-Scout Dominant Class ---------------- Mutant | -10/Materials Mutant | -9/Materials Scavenger-Mutant | -9/Mines Mutant | -9/Exiles Mutant | -8/Mines Mutant | -8/Materials Mutant | -7/Factory Mutant | -6/Factory Scout | -6/Extension Scavenger-Skirmisher | -6/Cetus Scavenger-Mutant | -6/Archives Scavenger-Mutant | -6/Hub_04(d) Resources | -11 -10 -9 -9 -9 -8 -8 -7 -6 -6 -6 -6 -6 ----------- Run | Scr Mat Mat Min Exi Min Mat Fac Fac Ext Cet Arc Hub Matter Collected 3246 | 260 51 55 90 221 . 440 115 704 312 324 62 612 Remotely . | . . . . . . . . . . . . . Salvage Created 4337 | . 242 272 148 . . 821 53 623 574 337 . 1267 Parts 213 | . 8 17 15 . . 49 2 25 29 18 . 50 Haulers Intercepted 8 | . 1 2 . . . 1 1 . 1 . . 2 Recyclers Shooed 2 | . . . . . . . . 2 . . . . Parts Field Recycled . | . . . . . . . . . . . . . Retrieved Matter . | . . . . . . . . . . . . . Parts Self-Destructed . | . . . . . . . . . . . . . Prevented . | . . . . . . . . . . . . . Kills | -11 -10 -9 -9 -9 -8 -8 -7 -6 -6 -6 -6 -6 ------- Run | Scr Mat Mat Min Exi Min Mat Fac Fac Ext Cet Arc Hub Combat Hostiles Destroyed 83 | . 4 9 8 . . 25 . 11 8 4 . 14 Guns 32 | . 3 4 1 . . 4 . 5 7 4 . 4 Cannons 24 | . . . . . . 13 . 1 1 . . 9 AOE 23 | . 1 5 7 . . 8 . 2 . . . . Classes Destroyed 14 | . 2 3 1 . . 3 . 4 1 . . . Worker 7 | . . 1 . . . . . . . . . 6 Builder 4 | . . 1 . . . . . 1 1 . . 1 Hauler 8 | . 1 2 . . . 1 1 . 1 . . 2 Recycler 2 | . . . . . . 1 . . . . . 1 Operator 3 | . . . . . . 2 . 1 . . . . Watcher 3 | . . . . . . . . 2 . . . 1 Swarmer 21 | . . 4 3 . . 8 . 2 3 . . 1 Grunt 37 | . 4 5 4 . . 14 . 2 1 2 . 5 Brawler 1 | . . . . . . . . 1 . . . . Duelist 2 | . . . 1 . . . . . . 1 . . Sentry 14 | . . . . . . 3 . 3 2 . . 6 Hunter 4 | . . . . . . . . 2 1 . . 1 Programmer 2 | . . . . . . . . 1 . . . 1 Behemoth 1 | . . . . . . . . . 1 . . . Cetus Guard 1 | . . . . . . . . . . 1 . . Enhanced Grunt 1 | . . . . . . . . . . . . 1 Thug 2 | . . . . . . . . . 1 1 . . Best Kill Streak 8 | . 2 8 3 . . 5 1 3 3 2 . 7 Combat Bots Only 5 | . 2 4 3 . . 5 . 3 3 2 . 4 Max Kills in Single Turn 3 | . 1 2 3 . . 2 1 2 1 2 . 2 Gunslinging . | . . . . . . . . . . . . . Exploded 3 | . 1 2 3 . . 2 . 2 . . . . Melee . | . . . . . . . . . . . . . Uniques/NPCs Destroyed 2 | . . . . . . . . . . 2 . . Revision 17 (-6/Cetus) A7 (-6/Cetus) Combat | -11 -10 -9 -9 -9 -8 -8 -7 -6 -6 -6 -6 -6 -------- Run | Scr Mat Mat Min Exi Min Mat Fac Fac Ext Cet Arc Hub Damage Taken 6882 | . 296 213 131 . . 871 127 1051 239 42 162 3750 Core 1255 | . 40 46 33 . . 246 38 118 . . . 734 Absorbed by Shields 175 | . . . . . . . . . 9 20 49 97 Core Remaining (%) 82 | 100 84 . . . 80 55 94 . . . . . Volleys Fired 362 | . 15 19 10 . . 85 6 69 34 28 3 93 Largest 2 | . 2 2 2 . . 2 2 2 2 2 2 2 Hottest 275 | . 105 105 50 . . 130 110 145 145 138 115 275 Shots Fired 596 | . 30 29 16 . . 147 12 108 65 43 4 142 Gun 369 | . 30 19 7 . . 18 12 84 60 39 4 96 Cannon 175 | . . . . . . 112 . 9 5 4 . 45 Launcher 40 | . . 10 9 . . 8 . 12 . . . 1 Special 12 | . . . . . . 9 . 3 . . . . Kinetic 210 | . 6 4 7 . . 52 . 27 2 28 3 81 Thermal 210 | . 6 5 . . . 79 1 12 31 15 1 60 Explosive 39 | . . 10 9 . . 8 . 12 . . . . Electromagnetic 137 | . 18 10 . . . 8 11 57 32 . . 1 Robot Hit Streak 16 | . 10 7 8 . . 13 6 16 14 4 3 14 Robot Miss Streak 7 | . 1 2 1 . . 5 1 3 2 5 1 7 Penetration Max 1 | . . . . . . . . . . 1 . 1 Secondary Targets 2 | . . . . . . . . . 1 1 . . Max Gunslinging Chain 1 | . . . . . . . . . 1 1 . . Shots Hit Robots 352 | . 23 21 11 . . 74 7 67 40 16 3 90 Core Hits 196 | . 10 20 11 . . 45 1 25 17 13 1 53 Critical Hits 21 | . . . . . . 3 . 1 2 4 . 11 Critical Kills 9 | . . . . . . 2 . . 1 2 . 4 Critical Parts Destroyed 9 | . . . . . . 1 . 1 . 1 . 6 Melee Attacks 5 | . . . . . . . . 5 . . . . Impact . | . . . . . . . . . . . . . Slashing . | . . . . . . . . . . . . . Piercing 5 | . . . . . . . . 5 . . . . Sneak Attacks . | . . . . . . . . . . . . . Combat Hostiles . | . . . . . . . . . . . . . Follow-up Attacks . | . . . . . . . . . . . . . Damage Inflicted 12298 | . 399 1113 669 . . 2449 141 2105 1134 640 50 3598 Guns 5011 | . 295 168 43 . . 208 112 1098 789 584 50 1664 Cannons 3161 | . . . . . . 1344 . 167 129 56 . 1465 Explosions 4112 | . 104 944 626 . . 897 29 840 216 . . 456 Melee . | . . . . . . . . . . . . . Ramming 14 | . . 1 . . . . . . . . . 13 Kinetic 2581 | . 39 21 43 . . 650 . 184 21 520 50 1053 Thermal 4364 | . 185 68 94 . . 841 50 210 720 120 . 2076 Explosive 3170 | . . 944 532 . . 897 . 797 . . . . Electromagnetic 2169 | . 175 79 . . . 61 91 914 393 . . 456 Impact . | . . . . . . . . . . . . . Slashing . | . . . . . . . . . . . . . Piercing . | . . . . . . . . . . . . . Highest Corruption 38 | . . 1 1 1 1 3 . 1 1 1 1 38 Average Corruption 2 | . . 1 1 1 1 3 . 1 1 1 1 4 Corruption Purged 1 | . . . . . . . . 1 . . . . Effects 74 | . . 1 2 2 1 7 . 8 8 4 1 40 Message Errors 16 | . . 1 2 1 1 . . 1 2 . 1 7 Matter Fused 9 | . . . . . . 3 . . . . . 6 Heat Flow Errors 6 | . . . . . . 1 . . . . . 5 Energy Discharges 11 | . . . . 1 . 1 . 3 1 . . 5 Parts Rejected 1 | . . . . . . . . . . . . 1 Data Loss (minor) 15 | . . . . . . 1 . 3 3 4 . 4 Data Loss (major) 2 | . . . . . . . . . . . . 2 Misdirections 3 | . . . . . . . . . . . . 3 Targeting Errors 9 | . . . . . . 1 . 1 1 . . 6 Weapon Failures 2 | . . . . . . . . . 1 . . 1 Overload Shots 5 | . . . . . . . . . . . . 5 Effects 1 | . . . . . . . . . . . . 1 Short Circuit 1 | . . . . . . . . . . . . 1 Overflow Damage 275 | . 22 19 26 . . 54 . 17 66 . . 71 Projectiles 45 | . . . . . . 27 . 12 . . . 6 Explosions 230 | . 22 19 26 . . 27 . 5 66 . . 65 Melee . | . . . . . . . . . . . . . Knockbacks 4 | . . . . . . 4 . . . . . . Impact . | . . . . . . . . . . . . . Kinetic 4 | . . . . . . 4 . . . . . . Secondary . | . . . . . . . . . . . . . Self-Inflicted Damage 562 | . 54 40 43 . . 27 7 43 159 . . 189 Shots 11 | . 1 1 2 . . 1 1 1 2 . . 2 Rammed 4 | . . 1 . . . . . . . . . 3 Targets Rammed 4 | . . 1 . . . . . . . . . 3 Kicked . | . . . . . . . . . . . . . Crushed . | . . . . . . . . . . . . . Highest Temperature 449 | . 118 135 16 . . 254 13 449 360 347 66 412 Average Temperature 108 | . 51 48 6 . . 105 7 129 101 120 34 118 Received Heat Transfer 868 | . 138 48 36 . . 189 30 66 32 6 26 297 Effects 16 | . . . . . . . . 8 1 1 . 6 Shutdowns 5 | . . . . . . . . 3 . . . 2 Energy Bleed 5 | . . . . . . . . 3 . 1 . 1 Interference 4 | . . . . . . . . 1 . . . 3 Short Circuit 1 | . . . . . . . . 1 . . . . Damage (minor) 1 | . . . . . . . . . 1 . . . Siege Activations . | . . . . . . . . . . . . . Robots Corrupted 5 | . . . . . . . . 3 1 . . 1 Combat Hostiles 3 | . . . . . . . . 3 . . . . Parts Fried 9 | . . . . . . . . 3 2 3 . 1 Impact Corruptions . | . . . . . . . . . . . . . Robots Melted 1 | . . . . . . . . . . . . 1 Combat Hostiles 1 | . . . . . . . . . . . . 1 Parts Melted 4 | . . 1 . . . . . . 2 . . 1 Heat Transferred 5774 | . 235 148 150 . . 1503 87 300 920 185 . 2246 Parts Sabotaged . | . . . . . . . . . . . . . Parts Stolen . | . . . . . . . . . . . . . Parts Stripped . | . . . . . . . . . . . . . Power Chain Reactions 4 | . 1 . . . . . 1 1 1 . . . Missiles Intercepted . | . . . . . . . . . . . . . Alert | -11 -10 -9 -9 -9 -8 -8 -7 -6 -6 -6 -6 -6 ------- Run | Scr Mat Mat Min Exi Min Mat Fac Fac Ext Cet Arc Hub Peak Influence 1076 | . 112 290 317 . . 523 513 602 478 1055 609 1076 Initial 422 | . . 46 112 . . . 165 251 247 135 422 212 Average 385 | . 50 127 255 . . 220 283 450 228 678 582 590 Maximum Alert Level 3 | . . 1 1 . . 2 2 2 2 3 2 3 Low Security (%) 24 | 100 100 77 8 . 100 48 44 . 38 5 . . Level 1 29 | . . 22 91 . . 35 26 17 57 11 . 21 Level 2 37 | . . . . . . 16 28 82 3 33 100 56 Level 3 8 | . . . . . . . . . . 49 . 21 Level 4 . | . . . . . . . . . . . . . Level 5 . | . . . . . . . . . . . . . High Security . | . . . . . . . . . . . . . Max Security . | . . . . . . . . . . . . . Squads Dispatched 22 | . 2 2 . . . 7 . 3 1 1 . 6 Investigation 5 | . . . . . . 2 . . . 1 . 2 Extermination 3 | . . . . . . . . 2 . . . 1 Reinforcement 12 | . 2 2 . . . 3 . 1 1 . . 3 Assault . | . . . . . . . . . . . . . Garrison 2 | . . . . . . 2 . . . . . . Intercept . | . . . . . . . . . . . . . Construction Impeded 4 | . . 1 . . . . . 1 . . . 2 Haulers Reinforced . | . . . . . . . . . . . . . Stealth | -11 -10 -9 -9 -9 -8 -8 -7 -6 -6 -6 -6 -6 --------- Run | Scr Mat Mat Min Exi Min Mat Fac Fac Ext Cet Arc Hub Distress Signals 9 | . 1 . . . . 3 . . 3 . . 2 Communications Jammed . | . . . . . . . . . . . . . Distress Signals . | . . . . . . . . . . . . . Times Spotted 192 | . 10 11 7 . . 37 2 18 23 29 3 52 Peak Tracking Total 12 | . 3 4 3 . . 8 1 4 5 7 1 12 Tactical Retreats 10 | . . . . . . 4 1 . 2 1 . 2 Traps | -11 -10 -9 -9 -9 -8 -8 -7 -6 -6 -6 -6 -6 ------- Run | Scr Mat Mat Min Exi Min Mat Fac Fac Ext Cet Arc Hub Traps Triggered 7 | . . 1 . . . 1 . 2 2 . . 1 Indirectly . | . . . . . . . . . . . . . Trap Hack Attempts . | . . . . . . . . . . . . . Triggered . | . . . . . . . . . . . . . Disarmed . | . . . . . . . . . . . . . Reprogrammed . | . . . . . . . . . . . . . Reused . | . . . . . . . . . . . . . Traps Extracted . | . . . . . . . . . . . . . Installed . | . . . . . . . . . . . . . Triggered . | . . . . . . . . . . . . . Machines | -11 -10 -9 -9 -9 -8 -8 -7 -6 -6 -6 -6 -6 ---------- Run | Scr Mat Mat Min Exi Min Mat Fac Fac Ext Cet Arc Hub Machines Disabled 47 | . . 2 1 . . 2 . 4 5 5 2 26 Max in Single Turn 7 | . . 1 1 . . 1 . 2 2 1 2 7 Garrison Access 4 | . . . . . . 1 . 1 . . . 2 Network Hub 2 | . . . . . . . . . . . . 2 Energy Cycler 2 | . . . . . . . . . 2 . . . Machines Sabotaged . | . . . . . . . . . . . . . Garrisons Compromised . | . . . . . . . . . . . . . Overloaded Fab Kills . | . . . . . . . . . . . . . Fab Network Shutdowns 1 | . . . . . . . 1 . . . . . Hacking | -11 -10 -9 -9 -9 -8 -8 -7 -6 -6 -6 -6 -6 --------- Run | Scr Mat Mat Min Exi Min Mat Fac Fac Ext Cet Arc Hub Machines Accessed 75 | . . 3 . 5 . 7 11 18 14 3 1 13 Terminals 46 | . . 1 . . . 4 4 9 14 3 . 11 Fabricators 4 | . . . . . . . 2 2 . . . . Repair Stations 2 | . . . . . . . 1 1 . . . . Recycling Units 8 | . . 1 . . . 1 2 4 . . . . Scanalyzers 4 | . . 1 . . . 1 1 1 . . . . Garrison Access 5 | . . . . . . 1 1 1 . . . 2 Total Hacks 213 | . . 10 . 12 . 22 25 32 33 8 25 46 Successful 133 | . . 8 . 12 . 13 8 20 20 3 25 24 Failed 79 | . . 2 . . . 8 17 12 13 5 . 22 Catastrophic 9 | . . . . . . 1 1 4 1 1 . 1 Database Lockouts 1 | . . . . . . 1 . . . . . . Manual 54 | . . . . 1 . 4 2 10 9 2 4 22 Terminals 129 | . . 2 . . . 16 10 18 33 8 . 42 Fabricators 10 | . . . . . . . 6 4 . . . . Repair Stations 4 | . . . . . . . 2 2 . . . . Recycling Units 10 | . . 1 . . . 1 4 4 . . . . Scanalyzers 14 | . . 7 . . . 3 1 3 . . . . Garrison Access 9 | . . . . . . 2 2 1 . . . 4 Terminal Hacks 90 | . . . . 12 . 7 3 6 18 3 25 16 Record 44 | . . . . 11 . 2 1 . 1 3 25 1 Part Schematic 7 | . . . . . . . . 2 2 . . 3 Robot Analysis 2 | . . . . . . 1 . . . . . 1 Prototype ID Bank 1 | . . . . . . 1 . . . . . . Open Door 6 | . . . . . . . . 1 5 . . . Level Access Points 1 | . . . . . . . . . . . . 1 Branch Access Points 2 | . . . . . . . . . 1 . . 1 Terminal Index 1 | . . . . . . . . 1 . . . . Scanalyzer Index 1 | . . . . . . . . 1 . . . . Alert Level 7 | . . . . . . 2 1 . 2 . . 2 Unreport Threat 5 | . . . . . . 1 . . 1 . . 3 Locate Traps 2 | . . . . . . . . . 2 . . . Investigation Status 1 | . . . . . . . . . . . . 1 Hauler Manifests 1 | . . . . . . . . . 1 . . . Registered Components 3 | . . . . . . . 1 . 1 . . 1 Zone Layout 5 | . . . . . . . . 1 2 . . 2 EX-Prototype ID Bank 1 | . . . . 1 . . . . . . . . Fabricator Hacks 6 | . . . . . . . 3 3 . . . . Network Status 1 | . . . . . . . 1 . . . . . Load Schematic 1 | . . . . . . . . 1 . . . . Build 4 | . . . . . . . 2 2 . . . . Repair Station Hacks 2 | . . . . . . . 1 1 . . . . Scan Component 2 | . . . . . . . 1 1 . . . . Recycling Unit Hacks 5 | . . 1 . . . 1 . 3 . . . . Report Inventory 5 | . . 1 . . . 1 . 3 . . . . Scanalyzer 12 | . . 7 . . . 3 . 2 . . . . Insert Component 6 | . . 3 . . . 2 . 1 . . . . Analyze 6 | . . 4 . . . 1 . 1 . . . . Garrison Access Hacks 4 | . . . . . . 1 . 1 . . . 2 Seal Access 4 | . . . . . . 1 . 1 . . . 2 Unauthorized Hacks 14 | . . . . . . 1 1 4 2 . . 6 Terminals 14 | . . . . . . 1 1 4 2 . . 6 Assimilate 1 | . . . . . . . . . . . . 1 Botnet 13 | . . . . . . 1 1 4 2 . . 5 Fabricators . | . . . . . . . . . . . . . Repair Stations . | . . . . . . . . . . . . . Recycling Units . | . . . . . . . . . . . . . Scanalyzers . | . . . . . . . . . . . . . Garrison Access . | . . . . . . . . . . . . . Data Cores Recovered 2 | . . . . . . . . 1 . . . 1 Used 2 | . . . . . . . . 1 . . . 1 Hacking Detections 58 | . . 2 . . . 6 11 13 10 4 . 12 Full Trace Events 3 | . . . . . . 1 . . . 1 . 1 Feedback Events . | . . . . . . . . . . . . . Feedback Blocked . | . . . . . . . . . . . . . Robot Schematics Acquired . | . . . . . . . . . . . . . Robots Built 6 | . . . . . . . 6 . . . . . Matter 438 | . . . . . . . 438 . . . . . Time 116 | . . . . . . . 116 . . . . . Total Robot Build Rating 18 | . . . . . . . 18 . . . . . Part Schematics Acquired 12 | . . 3 . . . 1 . 3 2 . . 3 Parts Built 4 | . . . . . . . . 4 . . . . Matter 336 | . . . . . . . . 336 . . . . Time 84 | . . . . . . . . 84 . . . . Total Part Build Rating 16 | . . . . . . . . 16 . . . . Parts Repaired . | . . . . . . . . . . . . . Time . | . . . . . . . . . . . . . Parts Recycled . | . . . . . . . . . . . . . Recycled Matter . | . . . . . . . . . . . . . Retrieved Matter . | . . . . . . . . . . . . . Retrieved Components . | . . . . . . . . . . . . . Parts Scanalyzed 5 | . . 3 . . . 1 . 1 . . . . Part Schematics Acquired 5 | . . 3 . . . 1 . 1 . . . . Parts Damaged 2 | . . 1 . . . 1 . . . . . . Bothacking | -11 -10 -9 -9 -9 -8 -8 -7 -6 -6 -6 -6 -6 ------------ Run | Scr Mat Mat Min Exi Min Mat Fac Fac Ext Cet Arc Hub Used RIF Installer . | . . . . . . . . . . . . . Robots Hacked . | . . . . . . . . . . . . . Non-combat . | . . . . . . . . . . . . . Combat . | . . . . . . . . . . . . . Robot Hacks Applied . | . . . . . . . . . . . . . Relay Couplers Released 1 | . . . . . . . . . . . . 1 Machine Destruction 1 | . . . . . . . . . . . . 1 Robots Rewired 4 | . . . . . . . . . 4 . . . Allies Hacked . | . . . . . . . . . . . . . Hacks Repelled . | . . . . . . . . . . . . . Allies | -11 -10 -9 -9 -9 -8 -8 -7 -6 -6 -6 -6 -6 -------- Run | Scr Mat Mat Min Exi Min Mat Fac Fac Ext Cet Arc Hub Total Allies 24 | . . . . . . . 6 . 13 5 . . Largest Group 12 | . . . . . . . 6 6 10 12 6 5 Highest-Rated Group 787 | . . . . . . . 96 96 426 787 496 402 Highest-Rated Ally 156 | . . . . . . . 16 16 156 156 94 94 Total Orders . | . . . . . . . . . . . . . Ally Attacks 317 | . . . . . . . 10 28 39 156 20 64 Total Damage 7292 | . . . . . . . 143 288 621 3377 736 2127 Kills 60 | . . . . . . . 1 3 7 26 4 19 Allies Corrupted . | . . . . . . . . . . . . . Allies Melted . | . . . . . . . . . . . . . Intel | -11 -10 -9 -9 -9 -8 -8 -7 -6 -6 -6 -6 -6 ------- Run | Scr Mat Mat Min Exi Min Mat Fac Fac Ext Cet Arc Hub Robot Analysis Total 2 | . . . . . . 1 . . . . . 1 Derelict Logs Recovered 3 | . . . 3 . . . . . . . . . Drone Launches . | . . . . . . . . . . . . . Drone Recoveries . | . . . . . . . . . . . . . Exploration | -11 -10 -9 -9 -9 -8 -8 -7 -6 -6 -6 -6 -6 ------------- Run | Scr Mat Mat Min Exi Min Mat Fac Fac Ext Cet Arc Hub Turns Passed 9085 | 47 298 388 373 447 96 851 566 1526 1584 672 330 1907 Spaces Moved 8717 | 32 159 212 281 665 189 735 892 2282 1639 469 189 973 Core 32 | 6 . . . 1 . . . . . . . 25 Treads 1188 | . . . . . . . . . . 151 189 848 Legs 822 | 26 159 212 281 144 . . . . . . . . Wheels . | . . . . . . . . . . . . . Hover . | . . . . . . . . . . . . . Flight 6675 | . . . . 520 189 735 892 2282 1639 318 . 100 Fastest Speed 42 | 50 120 120 120 50 50 50 42 42 42 42 160 50 Average Speed 67 | 116 129 120 120 65 50 50 42 42 42 80 160 145 Slowest Speed 300 | 150 150 120 120 300 50 50 50 111 50 160 160 160 Overloaded Moves . | . . . . . . . . . . . . . Propulsion Burnouts . | . . . . . . . . . . . . . Robots Hopped 16 | . . . . . . 1 . . 15 . . . Cave-ins Triggered 1 | . . . . . . 1 . . . . . . Exploration Rate (%) 59 | 3 37 25 86 94 40 41 21 49 97 94 100 81 Regions Visited 12 Branch Regions 7 Pre-discovered Areas 1 | . . . 1 . . . . . . . . . Known Exits Taken 6 | . . . 1 1 1 1 1 . 1 . . . Unknown Exits Taken 6 | 1 1 1 . . . . . 1 . 1 1 . Scrap Searched 1 | . . . 1 . . . . . . . . . Spaces Dug 278 | . . . . . . 28 . 89 2 . . 159 Terrain Destroyed 868 | . 5 89 77 . . 81 . 210 51 9 2 344 Melee 5 | . . . . . . . . 5 . . . . Projectile 107 | . . . . . . 52 . 9 2 9 2 33 AOE 756 | . 5 89 77 . . 29 . 196 49 . . 311 Terrain Rammed . | . . . . . . . . . . . . . Walls Destroyed . | . . . . . . . . . . . . . Machines Disabled . | . . . . . . . . . . . . . Actions | -11 -10 -9 -9 -9 -8 -8 -7 -6 -6 -6 -6 -6 --------- Run | Scr Mat Mat Min Exi Min Mat Fac Fac Ext Cet Arc Hub Total 11268 | 39 220 317 304 678 189 1050 1069 2728 2442 723 212 1297 Wait 1714 | . 38 63 . . . 182 141 231 706 179 12 162 Move 8678 | 31 158 211 280 664 188 731 891 2281 1614 468 188 973 Hop 10 | . . . . . . 1 . . 9 . . . Pick Up 83 | 2 3 8 1 3 1 17 8 20 4 8 . 8 Fast Attach 68 | 6 2 3 1 1 . 4 5 12 5 9 4 16 Attach 30 | . . 1 . . . 4 1 15 1 . . 8 Detach 17 | . . . . 1 . 1 1 10 1 1 . 2 Swap 81 | . 3 4 6 2 . 12 5 22 9 11 1 6 Drop 129 | . 1 7 6 7 . 12 11 30 6 19 4 26 Fire 362 | . 15 19 10 . . 85 6 69 34 28 3 93 Melee 5 | . . . . . . . . 5 . . . . Ram 1 | . . . . . . . . . . . . 1 Kick 1 | . . 1 . . . . . . . . . . Crush 2 | . . . . . . . . . . . . 2 Escape Stasis 50 | . . . . . . 1 . 33 16 . . . Rewire 37 | . . . . . . . . . 37 . . . Trap . | . . . . . . . . . . . . . Miscellaneous . | . . . . . . . . . . . . . Route ------- -11/Scrapyard -10/Materials -9/Materials -9/Mines (discovered 2 exits: *Mat / *Exi) -9/Exiles (discovered 2 exits: *Min x2) -8/Mines -8/Materials (discovered 2 exits: *Fac x2) -7/Factory -6/Factory (discovered 5 exits: *Fac x2 / [*Low] / *Ext x2) -6/Extension (discovered 3 exits: *Fac x2 / *Cet) -6/Cetus (discovered 3 exits: *Fac x2 / *Arc) -6/Archives (discovered 3 exits: *Fac / *Hub x2) -6/Hub_04(d) (discovered 4 exits: *Fac x4) History --------- Turn | Location | Event 19 | -11/Scrapyard | Discovered new exit (range 15) 48 | -11/Scrapyard | Entered Materials 281 | -10/Materials | Discovered new exit (range 15) 327 | -10/Materials | Build established: Mutant 346 | -10/Materials | Entered another Materials area 346 | -9/Materials | Evolved 2 slots: Propulsion x2 625 | -9/Materials | Discovered new exit (range 9) 734 | -9/Materials | Entered Mines 813 | -9/Mines | Learned location of Storage (-7) 895 | -9/Mines | Discovered new exit (range 5) 928 | -9/Mines | Identified exit to Materials 978 | -9/Mines | Learned 2 Materials zone layouts 1047 | -9/Mines | Identified exit to Exiles 1055 | -9/Mines | Build established: Scavenger-Mutant 1063 | -9/Mines | Learned 2 Materials zone layouts 1102 | -9/Mines | Deemed a non-threat by the Exiles lab entrance 1107 | -9/Mines | Entered Exiles 1137 | -9/Exiles | Met 8R-AWN 1154 | -9/Exiles | Met EX-HEX 1206 | -9/Exiles | Met EX-BIN 1227 | -9/Exiles | Aligned with FarCom system 1229 | -9/Exiles | Given EX-Vault access code 1267 | -9/Exiles | Opened EX-Vault 1277 | -9/Exiles | Found Prototype Device 1281 | -9/Exiles | Identified Skeleton Box 1288 | -9/Exiles | Found Flying Fortress v7 1313 | -9/Exiles | Warned to stay clear of 0b10 Research branches 1333 | -9/Exiles | Met EX-DEC 1389 | -9/Exiles | Discovered new exit (range 10) 1392 | -9/Exiles | Identified exit to Mines 1434 | -9/Exiles | Visited The Gauntlet 1527 | -9/Exiles | Discovered exit to Mines (range 14) 1554 | -9/Exiles | Left Exiles lab with Flying Fortress v7 1554 | -9/Exiles | Entered Mines 1569 | -8/Mines | Build established: Mutant 1639 | -8/Mines | Discovered exit to Materials (range 8) 1650 | -8/Mines | Entered Materials 1650 | -8/Materials | Evolved 2 slots: Utility x2 1651 | -8/Materials | Identified exit to Factory 1903 | -8/Materials | Central database locked down 2092 | -8/Materials | Crushed by falling debris 2103 | -8/Materials | Garrison activated, responded to threat 2163 | -8/Materials | Discovered exit to Factory (range 15) 2501 | -8/Materials | Entered Factory 2501 | -7/Factory | Evolved 2 slots: Propulsion x1, Utility x1 2863 | -7/Factory | Discovered new exit (range 20) 2882 | -7/Factory | Fabricated G-47 Trooper (x3) 2903 | -7/Factory | Local fabrication network quarantined 2940 | -7/Factory | Fabricated G-47 Trooper (x3) 2966 | -7/Factory | Identified exit to Factory 3067 | -7/Factory | Entered another Factory area 3067 | -6/Factory | Accompanied by 6 allies 3067 | -6/Factory | Evolved 2 slots: Power x1, Utility x1 3236 | -6/Factory | Build established: Commander-Mutant 3326 | -6/Factory | Spotted B-75 Beast 3388 | -6/Factory | Discovered new exit (range 22) 3425 | -6/Factory | Identified exit to Factory 3649 | -6/Factory | Build established: Mutant 3899 | -6/Factory | Discovered new exit (range 10) 3965 | -6/Factory | Fabricated Xenon Bombardment Thruster (x2) 4011 | -6/Factory | Fabricated Xenon Bombardment Thruster (x2) 4065 | -6/Factory | Found Prototype Launcher 4065 | -6/Factory | Identified Scatter Rocket Array 4293 | -6/Factory | Discovered new exit (range 17) 4355 | -6/Factory | Discovered exit to Factory (range 7) 4405 | -6/Factory | Discovered new exit (range 22) 4593 | -6/Factory | Entered Extension 4630 | -6/Extension | Warlord forces began an assault 4705 | -6/Extension | Spotted B-75 Beast 4713 | -6/Extension | Destroyed B-75 Beast 4724 | -6/Extension | Spotted B-75 Beast 4857 | -6/Extension | Discovered exit to Factory (range 3) 4878 | -6/Extension | Rescued a captive Derelict 4879 | -6/Extension | Rescued a captive Derelict 4956 | -6/Extension | Rescued a captive Derelict 5019 | -6/Extension | Identified exit to Cetus 5193 | -6/Extension | Discovered exit to Factory (range 16) 5410 | -6/Extension | Rescued a captive Derelict 5411 | -6/Extension | Rescued a captive Derelict 5420 | -6/Extension | Energy Cycler disabled 5421 | -6/Extension | Rescued a captive Derelict 5422 | -6/Extension | Rescued a captive Derelict 5423 | -6/Extension | Rescued a captive Derelict 5424 | -6/Extension | Build established: Scout 5424 | -6/Extension | Rescued a captive Derelict 5428 | -6/Extension | Rescued a captive Derelict 5894 | -6/Extension | Rescued A7 6177 | -6/Extension | Entered Cetus 6177 | -6/Cetus | Accompanied by 9 allies (A7) 6182 | -6/Cetus | Acquired a Cetus Manufacturing Module code from A7 6188 | -6/Cetus | Spotted Cetus Guard 6188 | -6/Cetus | Spotted Cetus Guard 6189 | -6/Cetus | Spotted Cetus Guard 6189 | -6/Cetus | Spotted Cetus Guard 6207 | -6/Cetus | Allies destroyed Cetus Guard 6214 | -6/Cetus | Allies destroyed Cetus Guard 6218 | -6/Cetus | Allies destroyed Cetus Guard 6220 | -6/Cetus | Allies destroyed Cetus Guard 6262 | -6/Cetus | Started Cetus Manufacturing Module 6266 | -6/Cetus | Discovered new exit (range 22) 6287 | -6/Cetus | Manufactured an Enhanced Grunt 6304 | -6/Cetus | Spotted Cetus Guard 6304 | -6/Cetus | Spotted Cetus Guard 6304 | -6/Cetus | Spotted Cetus Guard 6304 | -6/Cetus | Spotted Cetus Guard 6312 | -6/Cetus | Manufactured an Enhanced Grunt 6317 | -6/Cetus | Allies destroyed Cetus Guard 6317 | -6/Cetus | Allies destroyed Cetus Guard 6324 | -6/Cetus | Discovered exit to Factory (range 22) 6332 | -6/Cetus | Allies destroyed Cetus Guard 6332 | -6/Cetus | Destroyed Cetus Guard 6337 | -6/Cetus | Manufactured an Enhanced Grunt 6362 | -6/Cetus | Manufactured an Enhanced Grunt 6367 | -6/Cetus | Met Revision 17 6381 | -6/Cetus | Destroyed Revision 17 6387 | -6/Cetus | Manufactured an Enhanced Grunt 6545 | -6/Cetus | Cetus Manufacturing Module disabled 6611 | -6/Cetus | Discovered exit to Factory (range 21) 6731 | -6/Cetus | Escorted A7 to Cetus Mainframe 6786 | -6/Cetus | Found Prototype Protection 6786 | -6/Cetus | Identified Med. Regenerative Plating 6808 | -6/Cetus | Extracted ID and sensor layout for unrecognized location from A7's data core 6849 | -6/Cetus | Entered Archives 6849 | -6/Archives | Accompanied by 6 allies 6905 | -6/Archives | Unable to access archive contents 6913 | -6/Archives | Discovered new exit (range 22) 6922 | -6/Archives | Unable to access archive contents 6930 | -6/Archives | Discovered new exit (range 21) 6938 | -6/Archives | Unable to access archive contents 6946 | -6/Archives | Discovered exit to Factory (range 22) 7048 | -6/Archives | Found Prototype Device 7048 | -6/Archives | Identified Exp. Thermal Shield 7083 | -6/Archives | Build established: Scavenger-Mutant 7084 | -6/Archives | Unable to access archive contents 7179 | -6/Archives | Entered Hub_04(d) 7179 | -6/Hub_04(d) | Accompanied by 5 allies 7403 | -6/Hub_04(d) | Discovered exit to Factory (range 8) 7436 | -6/Hub_04(d) | Found Powered Armor 8003 | -6/Hub_04(d) | Found Exp. Thermal Shield 8786 | -6/Hub_04(d) | Disrupted transfer network 8854 | -6/Hub_04(d) | Build established: Scavenger-Skirmisher 8899 | -6/Hub_04(d) | Network Hub disabled 8952 | -6/Hub_04(d) | Spotted Lightning 8952 | -6/Hub_04(d) | Spotted Lightning 8975 | -6/Hub_04(d) | Spotted Lightning 9030 | -6/Hub_04(d) | Network Hub disabled 9031 | -6/Hub_04(d) | System corruption reached 10% 9033 | -6/Hub_04(d) | Spotted Lightning 9035 | -6/Hub_04(d) | Spotted Lightning 9040 | -6/Hub_04(d) | Spotted Lightning 9042 | -6/Hub_04(d) | Core integrity fell below 50% 9051 | -6/Hub_04(d) | Spotted Lightning 9067 | -6/Hub_04(d) | System corruption reached 30% 9073 | -6/Hub_04(d) | Spotted Lightning 9073 | -6/Hub_04(d) | Spotted Lightning 9074 | -6/Hub_04(d) | Core integrity fell below 20% 9086 | -6/Hub_04(d) | Destroyed by H-66 Slayer with Gauss Rifle Last Messages --------------- Critical hit. Penetrated by EMDS Slug. Critical hit. Centrium Heavy Treads destroyed. EMDS Slug penetrates Wall. Slammed into U-05 Engineer. ALERT: Construction progress impeded, dispatching reinforcements to local area. Dropped Hcp. Storage Unit. EMDS Slug penetrates Wall. Centrium Heavy Treads destroyed. EMDS Slug penetrates Wall. EMDS Slug penetrates Terminal. EMDS Slug penetrates Wall. Dropped Centrium Medium Armor Plating. Acquired Quantum Reactor. Acquired 52 matter. EMDS Slug penetrates Wall. Slammed into H-66 Slayer. Penetrated by Slug. Map ----- +----------------------------------------------------+ | # " "" ####### * ## #??# # | | + """" #?????##"####+####### #??# # | | # #??????# #??# #?????# #??# # | | # #??????# #??# ####### #??# + | | # #??????# #??# + #??###### | | # #??????# #??######### #???????# | | ##########??????# #??????????#######+##???????# | | #???????????????# #????????######### #????????# | | #???????????????# #????????# # ########## | | #???????????????# #????????# """" # # | | #???????????????# #????????# """ # # " " " " | | #??????????????? ????????# """ # # " " " " | | #??????????????? < ????????# """" # # " " " " | | #??????????????? ????????# # # | | #???????????????# #??####### "" " " | | #???????????????# #??# # """ # # "" "" | | %#???????????????#!#??# " # """ + #[ ""G"" | | * #???????????????#%#??# "G" # """ # ########## | | #???????????????#!#??# " # # #????????? | | #???????????????# #??# # " + ########## | | #???????????????# #??# # " # ## + / | | #???????????????# #??# " " #= " # ## ## | | ################# #### " "[#% # ## ## "" | | * %## " =+% # ## ## """" | | ! = ] h %%#* " # ## ## """" | | [**##@" !# + ## ## """" | | ###T##################### " " # # ## ####### | | ??###???????????????????# " " # * # # "" | | ????????????????????????# # !! % + # " | | ????????????????????????# ! [!###/##### # " | | ????????????????????????###+###!%/!]%=[ # " | | ??????????????###+########=!==%*=%! ![ !# " | | ?????????????+ [=!%[ [%*%%!%]*!/ !% " | | ?????????????#############h####h=%*%= =## " | | ??????????????############h#####h !"" # " | | ??????????????# !h !#hh " ## " | | ??????????????# " " " " [[ " + h ! ## " | | ??????????????# " " " "*[[ " # h ""%! ##"""""" " | | ??????????????# " " " "%! " # "" #" """"" "" | | ??????????????# [ = #! i!! # " ! | | ??????????????######### ######## ii! # " | | ?????????????????????#############+##%!# " | | ?????????????????????## #= # " | | ?????????????????????## [ # #"""! | | ??????????????????????#! # " | | ??????????????????????# [ !# [% " | | ??????????????????????##############""""""" | | ?????????????????????????????# "" | | ?????????????????????????????# "" | | ?????????????????????????????# "" | +----------------------------------------------------+ Best States ------------- Heat Dissipation 64 Coolant Potential 65 Energy Generation 45 Energy Capacity 1400 Matter Stores 300 Matter Capacity 300 Sight Range 22 Robot Scan Range 13 Terrain Scan Range 20 Terrain Scan Density 110 Armor Coverage 625 Resistance: TH 30 Weapon Shielding 33 Evasion (%) 71 Targeting Accuracy 5 Recoil Reduction 5 Offensive Hacking 12 Defensive Hacking 14 Item Schematics ----------------- Imp. Signal Interpreter | -9/Materials | Scanalyzed Lrg. Storage Unit | -9/Materials | Scanalyzed Grenade Launcher | -9/Materials | Scanalyzed Imp. Grenade Launcher | -8/Materials | Scanalyzed Xenon Bombardment Thruster | -6/Factory | Scanalyzed Myomer Leg | -6/Factory | Hacked Adv. Hacking Suite | -6/Factory | Hacked Field Propulsion Array | -6/Extension | Hacked Hvy. Machine Gun | -6/Extension | Hacked Remote Shield | -6/Hub_04(d) | Hacked Smartbomb Launcher | -6/Hub_04(d) | Hacked Reaction Control System | -6/Hub_04(d) | Hacked Robot Schematics ------------------ None Fabricated ------------ G-47 Trooper | x3 | -7/Factory | Preloaded G-47 Trooper | x3 | -7/Factory | Preloaded Xenon Bombardment Thruster | x2 | -6/Factory Xenon Bombardment Thruster | x2 | -6/Factory Alien Tech Used ----------------- None Achievements -------------- Collateral Damage Cya! Project G-00 Revising The Future Challenges ------------ None Game ------ Seed NetworkDeepDoomcannon Manual? 0 Play Time 03:25:30 Cumulative 96.4 hours Start 2022.01.14 @ 23:58:26 End 2022.01.16 @ 02:16:17 Sessions 7 Manual Loads 0 Difficulty Rogue Special Mode None Game No. 27 Rogue 27 Adventurer 0 Explorer 0 Win Type - Total 0 Types 0/0/0/0/0/0/0/0/0 Lore% 39 Gallery% 54 Achievement% 38 Wizard Run 0 Options --------- ASCII 0 Keyboard 0 Movement Mouse Keybinds 0 Fullscreen 2 Font 18/SmallcapsGlow Map View 76x50 Tactical HUD 0 Map Filters NONE Filters NONE Steam 1 RUN: 475bf079-13c7-483b-9e73-292501634f96